bitfinex-derivatives/quotes_ETHF0:USTF0_20250520
["timestamp","ask_amount","ask_price","bid_price","bid_amount"]
[1747745514407,2.74,2488.1,2488.0,13.70506078]
[1747745515708,1.5954,2488.5,2488.4,0.80342]
[1747745516013,0.80338,2488.6,2488.5,0.80337]
[1747745516211,3.54338,2488.6,2488.5,0.28183722]
[1747745516411,3.54335,2488.6,2488.5,4.75902722]
[1747745516913,2.74,2488.6,2488.5,7.96682722]
[1747745517114,3.2078,2489.1,2488.7,2.00829]
[1747745517413,0.80321,2489.1,2489.0,0.80318]
[1747745517613,0.80321,2489.1,2489.0,1.08501722]
[1747745517814,0.80321,2489.1,2489.0,0.28143702]
[1747745518006,2.81201,2489.1,2489.0,0.28143702]
[1747745518208,3.54321,2489.1,2489.0,0.28143702]
[1747745518716,0.80326,2488.9,2488.8,11.35486]
[1747745518907,0.80326,2488.9,2488.8,11.63609348]
[1747745519108,3.54326,2488.9,2488.8,9.21923348]
[1747745519510,3.54326,2488.9,2488.8,10.02252348]
[1747745519716,2.74,2488.9,2488.8,13.64493493]
[1747745520015,2.74,2488.9,2488.8,16.85273493]
[1747745520208,2.74,2488.9,2488.8,16.85272604]
[1747745520816,3.54326,2488.9,2488.8,11.63396604]
[1747745521009,5.55222,2488.9,2488.8,0.28107604]
[1747745521318,5.55222,2488.9,2488.8,8.936]
[1747745521718,8.77962,2488.9,2488.8,8.936]
[1747745522306,8.77962,2488.9,2488.8,9.73929]
[1747745522510,8.77962,2488.9,2488.8,8.936]
[1747745522813,2.74,2488.9,2488.8,9.73929]
[1747745523215,3.54326,2488.9,2488.8,9.73929]
[1747745523711,2.74,2488.9,2488.8,9.73929]
[1747745524015,2.74,2488.9,2488.8,11.41229]
[1747745524213,3.54326,2488.9,2488.8,13.42125]
[1747745524417,2.74,2488.9,2488.8,13.42125]
[1747745524717,3.54326,2488.9,2488.8,11.41229]
[1747745524918,2.74,2488.9,2488.8,11.41229]
[1747745525220,2.82486477,2488.9,2488.8,11.69328409]
[1747745525417,2.82486477,2488.9,2488.8,13.70224409]
[1747745525719,2.82486477,2488.9,2488.8,13.70223663]
[1747745525914,2.82486477,2488.9,2488.8,15.37993663]
[1747745526219,0.08486477,2488.9,2488.8,15.37993663]
[1747745526623,0.08486477,2488.9,2488.8,24.41893663]
[1747745527315,2.82486477,2488.9,2488.8,24.41893663]
[1747745527710,1.6562,2489.4,2489.3,0.80313]
[1747745527907,1.6562,2489.4,2489.3,9.70913]
[1747745528110,2.74,2489.4,2489.3,11.19554612]
[1747745528318,2.74,2489.4,2489.3,11.99867612]
[1747745528617,2.74,2489.4,2489.3,59.16377612]
[1747745528814,2.74,2489.4,2489.3,57.37157612]
[1747745529028,2.74,2489.4,2489.3,57.37157442]
[1747745530825,2.74,2489.4,2489.3,57.37159054]
[1747745531017,2.74,2489.4,2489.3,57.69292526]
[1747745531218,2.74,2489.4,2489.3,54.48412526]
[1747745531421,2.74,2489.4,2489.3,57.69192526]
[1747745532215,2.74,2489.4,2489.3,62.69192526]
[1747745532422,2.74,2489.4,2489.3,62.69213641]
[1747745533221,2.74,2489.4,2489.3,71.72913641]
[1747745533523,8.99763001,2489.9,2489.8,0.80297]
[1747745533820,8.99763001,2489.9,2489.8,9.98818669]
[1747745534022,8.99763001,2489.9,2489.8,11.99637075]
[1747745534212,11.73763001,2489.9,2489.8,13.60297075]
[1747745534608,14.54871501,2489.9,2489.8,1.88784575]
[1747745534820,14.54871501,2489.9,2489.8,0.28124575]
[1747745535020,14.54871501,2489.9,2489.4,1.85552503]
[1747745535021,0.80306,2489.5,2489.4,1.85552503]
[1747745535217,0.80306,2489.5,2489.4,11.84303766]
[1747745535519,13.74504001,2489.9,2489.5,0.80306]
[1747745535520,5.51445,2489.6,2489.5,0.80306]
[1747745535826,4.7114,2489.6,2489.5,1.08465886]
[1747745536022,6.719795,2489.6,2489.5,2.68025886]
[1747745536216,10.262825,2489.6,2489.5,2.68025886]
[1747745536526,10.262825,2489.6,2489.5,3.00150937]
[1747745536721,9.459795,2489.6,2489.5,3.00150937]
[1747745536919,4.3283,2489.6,2489.5,5.00990437]
[1747745537222,2.74,2489.6,2489.5,5.00990437]
[1747745537818,2.74,2489.6,2489.5,5.2588294]
[1747745538321,8.99763001,2489.9,2489.8,0.80297]
[1747745538524,9.80056001,2489.9,2489.8,9.98756886]
[1747745538724,11.50526001,2489.9,2489.8,11.99572386]
[1747745539131,11.50526001,2489.9,2489.8,16.99595883]
[1747745539132,6.24167823,2489.9,2489.8,16.99595883]
[1747745539423,4.54830424,2489.9,2489.8,19.02230934]
[1747745539626,4.54830424,2489.9,2489.8,20.64940934]
[1747745540028,2.60554424,2489.9,2489.8,20.64940934]
[1747745540319,0.08486477,2490.2,2490.1,0.80287]
[1747745540517,2.00624,2491.3,2490.1,3.48963383]
[1747745540719,1.6621,2491.0,2490.6,3.2078]
[1747745540920,1.7047,2490.9,2490.8,0.80263]
[1747745541220,5.24731,2490.9,2490.8,1.08446383]
[1747745541419,6.452045,2490.9,2490.8,1.08446383]
[1747745541921,4.4447,2490.9,2490.8,4.77590883]
[1747745542136,2.74,2490.9,2490.8,13.67690883]
[1747745542320,2.74,2490.9,2490.8,13.67662788]
[1747745543428,3.2078,2491.4,2490.8,12.87399788]
[1747745543616,4.9205,2492.1,2491.3,3.2078]
[1747745543821,0.80244,2491.5,2491.4,9.18155288]
[1747745544016,0.80244,2491.5,2491.4,9.18127435]
[1747745544221,4.74686501,2491.5,2491.4,9.18127435]
[1747745544626,10.54928501,2491.5,2491.4,9.18127435]
[1747745544929,5.54928501,2491.5,2491.4,9.18127435]
[1747745545327,0.8025,2491.3,2490.9,3.2078]
[1747745545527,0.8025,2491.3,2491.2,0.8025]
[1747745545823,2.809645,2491.3,2491.2,1.08368221]
[1747745546028,2.809645,2491.3,2491.2,0.28118221]
[1747745546226,2.809525,2491.3,2491.2,0.28118221]
[1747745546418,0.80254,2491.2,2491.0,9.70256]
[1747745546622,1.5838,2491.1,2491.0,0.80256]
[1747745546831,1.5838,2491.1,2491.0,9.98274224]
[1747745547033,2.38635,2491.1,2491.0,9.98274224]
[1747745547231,5.12635,2491.1,2491.0,9.98274224]
[1747745547428,6.330985,2491.1,2491.0,9.98275403]
[1747745547828,4.3238,2491.1,2491.0,11.98993903]
[1747745548321,4.3238,2491.1,2491.0,9.98275403]
[1747745548533,6.330985,2491.1,2491.0,9.98275403]
[1747745548929,6.330985,2491.1,2491.0,9.70156]
[1747745549132,6.330985,2491.1,2491.0,9.98264467]
[1747745549732,7.133535,2491.1,2491.0,9.17908467]
[1747745550334,7.133535,2491.1,2491.0,9.98166467]
[1747745550528,7.133535,2491.1,2491.0,0.28108467]
[1747745550732,0.80261,2490.9,2490.8,0.80263]
[1747745550931,0.80261,2490.9,2490.8,9.98170006]
[1747745551123,10.549955,2490.9,2490.8,0.28107006]
[1747745551330,0.80264,2490.8,2490.7,9.21906952]
[1747745551736,7.810065,2490.8,2490.7,9.21906952]
[1747745552239,10.550065,2490.8,2490.7,8.898]
[1747745553034,10.550065,2490.8,2490.7,9.17938728]
[1747745553238,4.747425,2490.8,2490.7,9.98206728]
[1747745553439,5.550065,2490.8,2490.7,9.98206728]
[1747745553739,4.747425,2490.8,2490.7,9.98206728]
[1747745554238,4.747425,2490.8,2490.7,9.98219143]
[1747745554636,2.82486477,2490.8,2490.7,13.18999143]
[1747745554938,2.82486477,2490.8,2490.7,15.19741643]
[1747745555138,2.82486477,2490.8,2490.7,15.5185033]
[1747745555738,2.82486477,2490.8,2490.7,15.51874688]
[1747745556237,2.00671477,2490.8,2490.7,20.51874688]
[1747745556540,1.61546392,2490.8,2490.7,20.51874688]
[1747745557136,0.08486477,2490.8,2490.7,20.51874688]
[1747745558035,4.77e-06,2490.8,2490.7,20.51874688]
[1747745558940,1.55e-06,2490.8,2490.7,20.51874688]
[1747745559141,1.5541,2491.8,2491.7,0.80235]
[1747745559345,1.5541,2491.8,2491.7,9.95410501]
[1747745559548,3.56072,2491.8,2491.7,9.95410501]
[1747745559748,3.56072,2491.8,2491.7,11.56600501]
[1747745559948,5.12472,2491.8,2491.7,11.56600501]
[1747745560147,8.66704,2491.8,2491.7,11.56600501]
[1747745560549,8.66704,2491.8,2491.7,9.15175501]
[1747745560750,0.80242,2491.6,2491.5,0.8024]
[1747745560942,0.80242,2491.6,2491.5,9.95420147]
[1747745561142,5.549205,2491.6,2491.5,9.95420147]
[1747745561343,5.549205,2491.6,2491.5,9.95420462]
[1747745561946,5.549205,2491.6,2491.5,1.08420462]
[1747745562155,4.746785,2491.6,2491.5,10.27521131]
[1747745562356,10.549175,2491.6,2491.5,9.47281131]
[1747745562656,10.549175,2491.6,2491.5,0.60291774]
[1747745562657,15.320975,2491.6,2491.5,0.60291774]
[1747745563052,15.320975,2491.6,2491.5,0.28191105]
[1747745563856,0.80255,2491.1,2491.0,0.24781234]
[1747745564156,3.54255,2491.1,2491.0,9.11781234]
[1747745564356,10.549735,2491.1,2491.0,0.24781234]
[1747745564757,0.80268,2490.7,2490.6,3.45561234]
[1747745564952,2.81019,2490.7,2490.6,3.45561234]
[1747745565260,8.81539,2490.7,2490.6,0.24781234]
[1747745565455,8.81539,2490.7,2490.6,9.11781234]
[1747745566258,8.81539,2490.7,2490.6,8.87]
[1747745567657,0.80271,2490.6,2490.5,0.00603379]
[1747745567957,0.8028,2490.3,2490.2,0.33049342]
[1747745568355,7.81063,2490.3,2490.2,0.33049342]
[1747745568556,9.45723,2490.3,2490.2,0.33049342]
[1747745569163,12.19723,2490.3,2490.2,0.33049342]
[1747745570054,0.80287,2490.1,2490.0,0.63857092]
[1747745570359,0.80296,2489.9,2489.8,0.80295]
[1747745570555,0.80296,2489.9,2489.8,1.6092]
[1747745570856,2.811115,2489.9,2489.8,1.6092]
[1747745571259,7.184015,2489.9,2489.8,1.6092]
[1747745573264,6.381055,2489.9,2489.8,2.41217]
[1747745573467,7.183985,2489.9,2489.8,2.41217]
[1747745574665,7.183985,2489.9,2489.8,1.6092]
[1747745576464,5.551085,2489.9,2489.8,1.6092]
[1747745576968,0.803,2489.7,2489.6,0.00602156]
[1747745577158,0.803,2489.7,2489.6,10.52932156]
[1747745577359,2.811315,2489.7,2489.6,10.52932156]
[1747745577554,0.803,2489.7,2489.6,10.52932156]
[1747745577761,0.803,2489.7,2489.6,12.53763656]
[1747745578062,0.80299,2489.8,2489.7,0.80298]
[1747745578554,2.008235,2489.8,2489.7,0.80298]
[1747745578761,2.811205,2489.8,2489.7,0.80298]
[1747745578957,3.2078,2490.1,2490.0,0.8029]
[1747745579163,4.01067,2490.1,2490.0,9.6759]
[1747745579359,5.21579,2490.1,2489.8,1.711]
[1747745579554,0.8029,2490.0,2489.9,8.873]
[1747745579754,0.8029,2490.0,2489.9,10.584]
[1747745580267,2.74,2490.0,2489.9,11.38693]
[1747745580468,5.55097,2490.0,2489.9,10.584]
[1747745580864,5.55097,2490.0,2489.9,11.38693]
[1747745581061,5.55097,2490.0,2489.9,10.584]
[1747745581262,7.14507,2490.0,2489.9,8.873]
[1747745581464,0.80297,2489.8,2489.7,2.46038]
[1747745581663,0.80297,2489.8,2489.7,11.33338]
[1747745582059,0.80296,2489.9,2489.8,0.80294]
[1747745582265,0.80296,2489.9,2489.8,1.6574]
[1747745582460,2.811115,2489.9,2489.8,1.6574]
[1747745582667,2.811115,2489.9,2489.8,2.46037]
[1747745582866,2.811115,2489.9,2489.8,11.33337]
[1747745583367,5.551115,2489.9,2489.8,1.6574]
[1747745583564,0.80297,2489.8,2489.7,8.873]
[1747745583761,0.80297,2489.8,2489.6,0.00602156]
[1747745583762,0.803,2489.7,2489.6,0.00602156]
[1747745584262,7.227215,2489.7,2489.6,0.00602156]
[1747745584459,5.551315,2489.7,2489.6,0.00602156]
[1747745585067,7.227215,2489.7,2489.6,0.00602156]
[1747745585268,12.227215,2489.7,2489.6,0.00602156]
[1747745586371,0.80332,2488.7,2488.6,1.15414899]
[1747745586768,2.81244001,2488.7,2488.6,1.15414899]
[1747745587164,5.55244001,2488.7,2488.6,1.15414899]
[1747745587559,0.80335,2488.6,2488.5,11.31578]
[1747745587866,0.80335,2488.6,2488.5,10.5124]
[1747745588067,2.81255,2488.6,2488.5,11.31579]
[1747745588267,5.55255,2488.6,2488.5,11.31579]
[1747745588472,5.55255,2488.6,2488.5,10.5124]
[1747745589067,0.80339,2488.5,2488.4,0.00602156]
[1747745589273,0.80339,2488.5,2488.4,1.63212156]
[1747745589572,2.009285,2488.5,2488.4,2.43554156]
[1747745589767,3.54338,2488.6,2488.5,0.80339]
[1747745589969,5.552625,2488.6,2488.5,2.42949]
[1747745590976,4.749245,2488.6,2488.5,2.42949]
[1747745592170,2.74,2488.6,2488.5,2.42949]
[1747745592369,3.54335,2488.6,2488.5,2.42949]
[1747745592671,5.55255,2488.6,2488.5,2.42949]
[1747745593174,4.7492,2488.6,2488.5,2.42949]
[1747745593377,5.55255,2488.6,2488.5,2.42949]
[1747745594378,2.74,2488.6,2488.5,4.43869]
[1747745595280,0.00602156,2488.9,2488.8,0.80329]
[1747745595474,0.00602156,2488.9,2488.8,9.65429]
[1747745595678,0.80928156,2488.9,2488.8,9.65429]
[1747745595881,0.00602156,2488.9,2488.8,11.25239]
[1747745596288,2.74602156,2488.9,2488.8,11.25239]
[1747745596579,2.74602156,2488.9,2488.8,13.26135]
[1747745597280,0.00602156,2488.9,2488.8,13.26135]
[1747745597679,0.00602156,2488.9,2488.8,11.25239]
[1747745597986,0.00602156,2488.9,2488.8,13.26135]
[1747745598283,2.74602156,2488.9,2488.8,13.26135]
[1747745599282,0.00602156,2488.9,2488.8,13.58268181]
[1747745600282,2.74602156,2488.9,2488.8,13.58268181]
[1747745601386,2.83088633,2488.9,2488.8,13.58268181]
[1747745602181,0.09088633,2488.9,2488.8,13.58168181]
[1747745603184,0.09088633,2488.9,2488.8,18.58068181]
[1747745603686,3.2078,2489.4,2489.3,0.80313]
[1747745603887,0.80306,2489.6,2489.5,0.80303]
[1747745604381,2.811455,2489.6,2489.5,0.80303]
[1747745605186,5.551455,2489.6,2489.5,0.80303]
[1747745606394,5.551455,2489.6,2489.5,1.12436181]
[1747745606690,4.748395,2489.6,2489.5,1.12436181]
[1747745607683,2.74,2489.6,2489.5,3.13275681]
[1747745608188,2.74,2489.6,2489.5,3.13175681]
[1747745608691,2.74,2489.6,2489.5,3.13075681]
[1747745609094,2.74,2489.6,2489.5,3.12975681]
[1747745609294,0.00602156,2489.8,2489.7,0.802]
[1747745609484,0.00602156,2489.8,2489.7,11.661235]
[1747745611190,2.74602156,2489.8,2489.7,11.661235]
[1747745611594,2.74602156,2489.8,2489.7,6.018035]
[1747745611797,4.75425656,2489.8,2489.7,13.18113181]
[1747745612186,5.55722656,2489.8,2489.7,13.18113181]
[1747745612387,4.75425656,2489.8,2489.7,13.18113181]
[1747745613383,4.75425656,2489.8,2489.7,15.18936681]
[1747745613688,2.74602156,2489.8,2489.7,15.18936681]
[1747745614202,2.74602156,2489.8,2489.7,15.18836681]
[1747745614592,2.83088633,2489.8,2489.7,15.18836681]
[1747745615293,2.83088633,2489.8,2489.7,15.18736681]
[1747745615802,2.83088633,2489.8,2489.7,15.18636681]
[1747745619298,3.63385633,2489.8,2489.7,15.18636681]
[1747745619501,2.83088633,2489.8,2489.7,15.18636681]
[1747745620900,2.83088633,2489.8,2489.7,15.18536681]
[1747745621304,2.83088633,2489.8,2489.7,6.33536681]
[1747745621605,2.83088633,2489.8,2489.7,15.15636681]
[1747745622005,3.63385633,2489.8,2489.7,15.15536681]
[1747745622206,2.83088633,2489.8,2489.7,15.15436681]
[1747745622395,2.83088633,2489.8,2489.7,15.15336681]
[1747745622601,2.83088633,2489.8,2489.7,6.33136681]
[1747745622800,2.83088633,2489.8,2489.7,15.15336681]
[1747745622998,3.63385633,2489.8,2489.7,3.52913181]
[1747745623201,9.02459133,2489.8,2489.7,9.14333181]
[1747745624006,9.02459133,2489.8,2489.7,9.94633181]
[1747745625304,9.02459133,2489.8,2489.7,9.625]
[1747745626407,9.02459133,2489.8,2489.7,8.822]
[1747745626909,9.02459133,2489.8,2489.7,9.625]
[1747745627508,9.02459133,2489.8,2489.7,8.822]
[1747745628307,9.02459133,2489.8,2489.7,9.625]
[1747745628706,6.51882133,2489.8,2489.7,9.94626812]
[1747745629010,2.83088633,2489.8,2489.7,11.95450312]
[1747745629821,3.63385633,2489.8,2489.7,11.95450312]
[1747745630317,2.83088633,2489.8,2489.7,11.95450312]
[1747745630919,2.83088633,2489.8,2489.7,15.16230312]
[1747745631220,0.09088633,2489.8,2489.7,16.73780312]
[1747745631516,5.70757,2490.1,2490.0,0.8029]
[1747745631908,7.71556,2490.1,2490.0,0.8029]
[1747745632111,10.45556,2490.1,2490.0,0.8029]
[1747745632512,10.45556,2490.1,2490.0,1.42971578]
[1747745632810,8.75866,2490.1,2490.0,1.42971578]
[1747745633011,7.95579,2490.1,2490.0,3.03331578]
[1747745633218,5.55086,2490.1,2490.0,6.24111578]
[1747745633416,4.74799,2490.1,2490.0,6.24111578]
[1747745633817,5.55086,2490.1,2490.0,6.24111578]
[1747745634424,5.55086,2490.1,2490.0,3.03331578]
[1747745635110,2.74,2490.1,2490.0,7.94355812]
[1747745635314,3.54287,2490.1,2490.0,8.25085256]
[1747745635513,3.54287,2490.1,2490.0,2.88593423]
[1747745635718,5.55086,2490.1,2490.0,9.69994423]
[1747745636120,7.10586,2490.1,2490.0,9.69994423]
[1747745636818,7.10586,2490.1,2490.0,9.7000183]
[1747745637012,7.10586,2490.1,2490.0,0.8780183]
[1747745637223,7.10586,2490.1,2490.0,9.7000183]
[1747745637422,7.10586,2490.1,2490.0,0.8780183]
[1747745637609,12.10586,2490.1,2490.0,0.62863663]
[1747745638519,12.10586,2490.1,2490.0,0.628681]
[1747745639022,12.10586,2490.1,2490.0,0.30741288]
[1747745639221,0.8029,2490.0,2489.9,8.822]
[1747745639423,7.3898,2490.0,2489.9,9.12939457]
[1747745639626,9.39787,2490.0,2489.9,8.822]
[1747745640224,12.13787,2490.0,2489.9,9.12939999]
[1747745640427,12.13787,2490.0,2489.9,9.45067065]
[1747745640727,12.13787,2490.0,2489.9,9.14327066]
[1747745641024,12.13787,2490.0,2489.9,9.45066722]
[1747745641527,12.13787,2490.0,2489.9,0.62866722]
[1747745641830,17.13787,2490.0,2489.9,0.62866722]
[1747745643330,17.13787,2490.0,2489.9,0.6285884]
[1747745644323,0.80293,2489.9,2489.8,0.00602156]
[1747745644526,2.48753,2489.9,2489.8,0.00602156]
[1747745644728,9.495685,2489.9,2489.8,0.00602156]
[1747745645130,12.235685,2489.9,2489.8,0.00602156]
[1747745646223,12.88361808,2489.9,2489.8,0.00602156]
[1747745646427,7.88361808,2489.9,2489.8,0.00602156]
[1747745649539,7.235685,2489.9,2489.8,0.00602156]
[1747745649741,3.54293,2489.9,2489.8,0.00602156]
[1747745649934,3.54293,2489.9,2489.8,1.67412156]
[1747745650241,3.54293,2489.9,2489.8,1.99538226]
[1747745650545,3.54293,2489.9,2489.8,2.79835226]
[1747745650546,5.551085,2489.9,2489.8,2.79835226]
[1747745650746,3.54293,2489.9,2489.8,10.78638226]
[1747745655241,3.54293,2489.9,2489.8,12.79453726]
[1747745655743,2.74,2489.9,2489.8,13.59750726]
[1747745656246,0.08486477,2490.0,2489.9,0.80293]
[1747745656440,0.08486477,2490.0,2489.9,2.71900433]
[1747745656637,0.08486477,2490.0,2489.9,4.72707433]
[1747745656837,0.08486477,2490.0,2489.9,5.04829258]
[1747745657338,2.82486477,2490.0,2489.9,5.04829258]
[1747745658342,2.82486477,2490.0,2489.9,5.08356533]
[1747745658546,2.82486477,2490.0,2489.9,5.38046081]
[1747745658943,3.62776477,2490.0,2489.9,5.38046081]
[1747745659243,3.62776477,2490.0,2489.9,14.17046081]
[1747745660049,3.62776477,2490.0,2489.9,4.57753081]
[1747745660349,3.5429,2490.0,2489.9,14.17046081]
[1747745663149,3.5429,2490.0,2489.9,14.16946081]
[1747745663650,3.5429,2490.0,2489.9,14.16943584]
[1747745665252,3.5429,2490.0,2489.9,14.16944292]
[1747745665758,3.5429,2490.0,2489.9,13.36651292]
[1747745666448,3.5429,2490.0,2489.9,4.24430829]
[1747745666752,10.55097,2490.0,2489.9,0.61813829]
[1747745666952,5.55097,2490.0,2489.9,0.61813829]
[1747745667154,5.55097,2490.0,2489.9,2.25903829]
[1747745667455,3.5429,2490.0,2489.9,2.25903829]
[1747745667849,5.55097,2490.0,2489.9,2.25903829]
[1747745668152,5.55097,2490.0,2489.9,2.50814677]
[1747745668352,5.55097,2490.0,2489.9,0.86724677]
[1747745668552,12.16867,2490.0,2489.9,0.86731186]
[1747745669347,7.16867,2490.0,2489.9,0.86731186]
[1747745669658,7.16867,2490.0,2489.9,0.29694268]
[1747745670254,0.80293,2489.9,2489.8,0.00602156]
[1747745670443,7.46359477,2489.9,2489.8,0.30293293]
[1747745670642,9.47174977,2489.9,2489.8,0.30293293]
[1747745671253,12.21174977,2489.9,2489.8,0.30293293]
[1747745671449,12.21174977,2489.9,2489.8,0.62420237]
[1747745673661,12.21174977,2489.9,2489.8,0.62420441]
[1747745674461,17.21174977,2489.9,2489.8,0.62420441]
[1747745674656,17.21174977,2489.9,2489.8,0.30293497]
[1747745674962,17.21174977,2489.9,2489.8,0.00602156]
[1747745675262,17.21174977,2489.9,2489.8,0.30294165]
[1747745675561,17.21174977,2489.9,2489.8,0.00602156]
[1747745675950,17.85968285,2489.9,2489.8,0.30293891]
[1747745676157,11.15478285,2489.9,2489.8,0.30293891]
[1747745676362,9.49168285,2489.9,2489.8,0.30293891]
[1747745676859,9.49168285,2489.9,2489.8,0.00602156]
[1747745677162,9.49168285,2489.9,2489.8,0.30291271]
[1747745678374,9.49168285,2489.9,2489.8,0.62417218]
[1747745678875,8.84374977,2489.9,2489.8,0.62417218]
[1747745679174,8.84374977,2489.9,2489.8,2.20527218]
[1747745680767,6.83559477,2489.9,2489.8,3.00824218]
[1747745681469,6.83559477,2489.9,2489.8,5.26550566]
[1747745681869,6.83559477,2489.9,2489.8,3.25735066]
[1747745682070,3.62779477,2489.9,2489.8,3.25741653]
[1747745683077,3.62779477,2489.9,2489.8,3.34051268]
[1747745683577,3.62779477,2489.9,2489.8,2.53754268]
[1747745683776,3.62779477,2489.9,2489.8,2.53754326]
[1747745684168,3.14594292,2489.9,2489.8,5.34866826]
[1747745684369,3.14594292,2489.9,2489.8,11.29454326]
[1747745684571,3.23080769,2489.9,2489.8,13.30269826]
[1747745685471,3.23080769,2489.9,2489.8,13.30267183]
[1747745686072,3.23080769,2489.9,2489.8,4.54567183]
[1747745686274,3.23080769,2489.9,2489.8,13.21969904]
[1747745686476,3.23080769,2489.9,2489.8,11.21154404]
[1747745686672,3.23080769,2489.9,2489.8,13.21969904]
[1747745687774,3.23080769,2489.9,2489.8,2.45454404]
[1747745687976,5.23896269,2489.9,2489.8,9.63044404]
[1747745688175,4.95000769,2489.9,2489.8,9.63044404]
[1747745688374,6.59200769,2489.9,2489.8,9.63044404]
[1747745688680,6.59200769,2489.9,2489.8,9.63055548]
[1747745688882,6.59200769,2489.9,2489.8,11.23175548]
[1747745689276,8.60016269,2489.9,2489.8,11.23177859]
[1747745689975,8.60016269,2489.9,2489.8,10.98254675]
[1747745690375,8.60016269,2489.9,2489.8,2.22555943]
[1747745690589,8.60016269,2489.9,2489.8,10.98255943]
[1747745692083,8.60016269,2489.9,2489.8,10.98235721]
[1747745692383,8.60016269,2489.9,2489.8,10.98235724]
[1747745693275,6.88096269,2489.9,2489.8,10.98235724]
[1747745693480,5.23896269,2489.9,2489.8,10.98235724]
[1747745693886,5.23896269,2489.9,2489.8,10.98241383]
[1747745695491,5.23896269,2489.9,2489.8,11.23164567]
[1747745697188,5.23896269,2489.9,2489.8,11.23175624]
[1747745698784,5.23896269,2489.9,2489.8,10.68548103]
[1747745698989,5.23896269,2489.9,2489.8,10.98251971]
[1747745700494,5.23896269,2489.9,2489.8,10.98252736]
[1747745700895,3.23080769,2489.9,2489.8,10.98252736]
[1747745701096,3.23080769,2489.9,2489.8,10.98252832]
[1747745701794,3.23080769,2489.9,2489.8,10.98252031]
[1747745702096,3.23080769,2489.9,2489.8,11.23204166]
[1747745702394,5.23896269,2489.9,2489.8,11.23204166]
[1747745702595,6.86246269,2489.9,2489.8,11.23204166]
[1747745703400,6.86246269,2489.9,2489.8,11.23205687]
[1747745704300,6.86246269,2489.9,2489.8,10.98253552]
[1747745704499,6.86246269,2489.9,2489.8,0.62445291]
[1747745704795,0.80306,2489.5,2489.4,0.49539109]
[1747745704994,4.01086,2489.5,2489.4,0.49539109]
[1747745705195,0.80316,2489.2,2489.1,0.66490131]
[1747745705395,4.01096,2489.2,2489.1,0.66490131]
[1747745705596,6.01968,2489.2,2489.1,2.36810131]
[1747745705992,2.81188,2489.2,2489.1,2.36810131]
[1747745706193,5.55188,2489.2,2489.1,1.7032]
[1747745706999,8.75968,2489.2,2489.1,1.7032]
[1747745707601,0.80322,2489.0,2488.9,1.76262156]
[1747745707902,0.80322,2489.0,2488.9,0.00602156]
[1747745708097,2.8121,2489.0,2488.9,0.00602156]
[1747745708312,7.2673,2489.0,2488.9,0.00602156]
[1747745708603,12.2673,2489.0,2488.9,1.56e-06]
[1747745710097,0.80345,2488.3,2488.2,0.82400239]
[1747745710405,0.80345,2488.3,2488.0,5.0211]
[1747745710406,0.80351,2488.1,2488.0,5.0211]
[1747745710702,0.80351,2488.1,2488.0,1.6036]
[1747745710895,2.813115,2488.1,2488.0,1.6036]
[1747745711097,7.236315,2488.1,2488.0,1.6036]
[1747745714703,0.80358,2487.9,2487.8,0.00602156]
[1747745715198,5.55334501,2487.9,2487.8,8.73102156]
[1747745715402,3.54358,2487.9,2487.8,10.74078656]
[1747745716505,3.53823522,2487.9,2487.8,10.74078656]
[1747745717197,5.54800023,2487.9,2487.8,8.73102156]
[1747745717703,5.54800023,2487.9,2487.8,0.00602156]
[1747745718312,5.54800023,2487.9,2487.8,1.65182156]
[1747745718603,7.30750023,2487.9,2487.8,1.65182156]
[1747745719396,9.03890023,2487.9,2487.8,1.65182156]
[1747745720207,9.03890023,2487.9,2487.8,0.00602156]
[1747745721100,9.123765,2487.9,2487.8,0.00602156]
[1747745722103,9.03890023,2487.9,2487.8,0.00602156]
[1747745722309,0.8041,2486.3,2486.0,1.15414899]
[1747745722604,0.80416,2486.1,2486.0,1.15414899]
[1747745723000,2.815385,2486.1,2486.0,1.15414899]
[1747745723201,5.555385,2486.1,2486.0,1.15414899]
[1747745724505,10.555385,2486.1,2486.0,1.15414899]
[1747745724704,10.555385,2486.1,2485.5,1.64481858]
[1747745724705,0.80432,2485.6,2485.5,1.64481858]
[1747745725096,0.80432,2485.6,2485.5,3.65644358]
[1747745726106,0.80431,2485.7,2485.5,2.011625]
[1747745726409,0.80431,2485.7,2485.6,1.6047]
[1747745726899,2.815855,2485.7,2485.6,1.6047]
[1747745727095,5.555855,2485.7,2485.6,1.6047]
[1747745727300,7.279055,2485.7,2485.6,1.6047]
[1747745729205,5.555835,2485.7,2485.6,1.6047]
[1747745729403,3.54429,2485.7,2485.6,1.6047]
[1747745729707,3.2078,2485.0,2481.2,40.528]
[1747745729908,3.2078,2484.1,2483.4,3.2078]
[1747745730106,3.2078,2484.1,2483.7,0.80492]
[1747745730301,3.2078,2484.1,2483.8,10.3206]
[1747745730703,3.2078,2484.1,2483.8,12.333525]
[1747745731207,4.01264,2484.1,2483.8,12.333525]
[1747745731411,0.80485,2484.0,2483.9,8.732]
[1747745731910,0.80485,2484.0,2483.9,10.744925]
[1747745732301,2.817775,2484.0,2483.9,8.732]
[1747745733911,2.012925,2484.0,2483.9,8.732]
[1747745734114,3.2078,2484.1,2483.9,11.549785]
[1747745734307,3.2078,2484.1,2484.0,1.6975]
[1747745734612,0.81081379,2484.2,2484.0,1.6975]
[1747745735204,0.80481,2484.1,2484.0,1.6975]
[1747745735507,3.2078,2484.1,2484.0,1.6975]
[1747745735812,4.01261,2484.1,2484.0,3.71033999]
[1747745736802,3.2078,2484.1,2484.0,13.25217999]
[1747745737004,2.01086,2485.6,2484.9,0.80452]
[1747745737205,3.2078,2485.7,2485.2,4.01225]
[1747745737407,0.80442,2485.4,2485.3,10.4458]
[1747745737815,2.81621,2485.4,2485.3,1.7088]
[1747745738199,6.02401,2485.4,2485.3,1.7088]
[1747745738403,0.80442,2485.3,2485.2,8.737]
[1747745738612,2.38752,2485.3,2485.2,8.737]
[1747745738801,4.39939,2485.3,2485.2,8.737]
[1747745739605,4.39939,2485.3,2482.9,3.2078]
[1747745739606,3.2078,2485.0,2482.9,3.2078]
[1747745739816,3.2078,2484.0,2483.5,1.5872]